fUST/lending_fUST_20240524
["ID","MTS","AMOUNT","RATE_DAILY","PERIOD"]
[327789447,1716481840872,-500.0,0.00024657,2]
[327789448,1716481840881,-1870.67,0.00024657,2]
[327789449,1716481840891,-500.0,0.00024657,2]
[327789450,1716481840900,-670.41,0.00024657,2]
[327789451,1716481840910,-652.06,0.00024657,2]
[327789452,1716481840920,-22670.06,0.00024657,2]
[327789453,1716481840929,-488.03965703,0.00024657,2]
[327789454,1716481840939,-500.0,0.00024657,2]
[327789455,1716481840952,-500.0,0.00024657,2]
[327789456,1716481840962,-707.81,0.00024657,2]
[327789457,1716481840972,-500.0,0.00024657,2]
[327789458,1716481840982,-500.0,0.00024657,2]
[327789459,1716481840992,-845.25,0.00024657,2]
[327789460,1716481841001,-151.0,0.00024657,2]
[327789461,1716481841011,-151.0,0.00024657,2]
[327789462,1716481841020,-151.0,0.00024657,2]
[327789463,1716481841029,-500.0,0.00024657,2]
[327789464,1716481841039,-151.0,0.00024657,2]
[327789465,1716481841047,-298.23537721,0.00024657,2]
[327789466,1716481841056,-670.23,0.00024657,2]
[327789468,1716481841066,-181.65415134,0.00024657,2]
[327789469,1716481841075,-808.77,0.00024657,2]
[327789470,1716481841085,-500.0,0.00024657,2]
[327789471,1716481841099,-7241.17,0.00024657,2]
[327789472,1716481841108,-2120.17,0.00024657,2]
[327789473,1716481841117,-3281.43,0.00024657,2]
[327789474,1716481841127,-500.0,0.00024657,2]
[327789475,1716481841137,-1339.66,0.00024657,2]
[327789476,1716481841146,-509.91546109,0.00024657,2]
[327789477,1716481841155,-1133.13,0.00024657,2]
[327789478,1716481841166,-3469.08,0.00024657,2]
[327789479,1716481841175,-500.0,0.00024657,2]
[327789480,1716481841185,-500.0,0.00024657,2]
[327789481,1716481841198,-151.0,0.00024657,2]
[327789482,1716481841207,-1899.42,0.00024657,2]
[327789483,1716481841216,-151.0,0.00024657,2]
[327789484,1716481841224,-301.305457,0.00024657,2]
[327789485,1716481841233,-151.0,0.00024657,2]
[327789486,1716481841242,-1420.49,0.00024657,2]
[327789487,1716481841251,-151.0,0.00024657,2]
[327789488,1716481841261,-301.717514,0.00024657,2]
[327789489,1716481841270,-500.0,0.00024657,2]
[327789490,1716481841279,-500.0,0.00024657,2]
[327789491,1716481841289,-1000.0,0.00024657,2]
[327789492,1716481841298,-500.0,0.00024657,2]
[327789493,1716481841307,-151.0,0.00024657,2]
[327789494,1716481841316,-3593.78,0.00024657,2]
[327789495,1716481841325,-500.0,0.00024657,2]
[327789496,1716481841334,-500.0,0.00024657,2]
[327789497,1716481841343,-2880.29,0.00024657,2]
[327789498,1716481841353,-500.0,0.00024657,2]
[327789499,1716481841362,-3622.4,0.00024657,2]
[327789500,1716481841371,-2492.13,0.00024657,2]
[327789501,1716481841380,-522.18888105,0.00024657,2]
[327789502,1716481841390,-500.0,0.00024657,2]
[327789503,1716481841400,-687.5,0.00024657,2]
[327789504,1716481841409,-4531.45,0.00024657,2]
[327789505,1716481841418,-500.0,0.00024657,2]
[327789506,1716481841428,-617.9,0.00024657,2]
[327789507,1716481841436,-2000.0,0.00024657,2]
[327789508,1716481841448,-578.47,0.00024657,2]
[327789509,1716481841457,-1494.5,0.00024657,2]
[327789510,1716481841466,-500.0,0.00024657,2]
[327789511,1716481841475,-151.0,0.00024657,2]
[327789512,1716481841484,-534.17,0.00024657,2]
[327789513,1716481841493,-652.47,0.00024657,2]
[327789514,1716481841502,-2933.49,0.00024657,2]
[327789515,1716481841511,-151.0,0.00024657,2]
[327789516,1716481841520,-151.0,0.00024657,2]
[327789517,1716481841530,-189.933802,0.00024657,2]
[327789518,1716481841539,-2053.79,0.00024657,2]
[327789519,1716481841548,-500.0,0.00024657,2]
[327789520,1716481841557,-500.0,0.00024657,2]
[327789521,1716481841566,-500.0,0.00024657,2]
[327789522,1716481841575,-500.0,0.00024657,2]
[327789523,1716481841585,-500.0,0.00024657,2]
[327789524,1716481841594,-500.0,0.00024657,2]
[327789525,1716481841603,-500.0,0.00024657,2]
[327789526,1716481841612,-500.0,0.00024657,2]
[327789527,1716481841622,-500.0,0.00024657,2]
[327789528,1716481841631,-883.65,0.00024657,2]
[327789529,1716481841640,-341.42077002,0.00024657,2]
[327789530,1716481841903,-158.57922998,0.00024657,2]
[327789531,1716481841913,-2356.16,0.00024657,2]
[327789532,1716481841923,-500.0,0.00024657,2]
[327789533,1716481841933,-500.0,0.00024657,2]
[327789534,1716481841943,-151.0,0.00024657,2]
[327789535,1716481841956,-155.149692,0.00024657,2]
[327789536,1716481841965,-500.0,0.00024657,2]
[327789537,1716481841975,-564.08,0.00024657,2]
[327789538,1716481841984,-500.0,0.00024657,2]
[327789539,1716481841993,-271.99920431,0.00024657,2]
[327789540,1716481842003,-4445.99,0.00024657,2]
[327789541,1716481842012,-1266.54,0.00024657,2]
[327789542,1716481842022,-500.0,0.00024657,2]
[327789543,1716481842031,-658.46,0.00024657,2]
[327789544,1716481842041,-500.0,0.00024657,2]
[327789545,1716481842050,-500.0,0.00024657,2]
[327789546,1716481842060,-6249.35,0.00024657,2]
[327789547,1716481842070,-500.0,0.00024657,2]
[327789548,1716481842082,-1329.54,0.00024657,2]
[327789549,1716481842098,-500.0,0.00024657,2]
[327789550,1716481842108,-500.0,0.00024657,2]
[327789551,1716481842116,-500.0,0.00024657,2]
[327789552,1716481842126,-500.0,0.00024657,2]
[327789553,1716481842136,-1612.05,0.00024657,2]
[327789554,1716481842146,-500.0,0.00024657,2]
[327789555,1716481842156,-680.29,0.00024657,2]
[327789556,1716481842165,-646.97,0.00024657,2]
[327789557,1716481842175,-500.0,0.00024657,2]
[327789558,1716481842185,-571.77,0.00024657,2]
[327789559,1716481842195,-538.25312859,0.00024657,2]
[327789560,1716481842207,-500.0,0.00024657,2]
[327789561,1716481842217,-225.722438,0.00024657,2]
[327789562,1716481842227,-8223.96,0.00024657,2]
[327789563,1716481842237,-8223.96,0.00024657,3]
[327789564,1716481842247,-8223.96,0.00024657,4]
[327789565,1716481842257,-6056.47081562,0.00024657,5]
[327789628,1716481844044,-1897.486478,0.00024657,5]
[327789630,1716481844057,-270.00270638,0.00024657,5]
[327789632,1716481844067,-956.44,0.00024657,2]
[327789634,1716481844077,-8223.96,0.00024657,6]
[327789636,1716481844089,-8223.96,0.00024657,7]
[327789638,1716481844102,-717.3,0.00024657,2]
[327789640,1716481844112,-8223.96,0.00024657,8]
[327789658,1716481844271,-500.0,0.00024657,2]
[327789660,1716481844281,-6629.98618828,0.00024657,9]
[327789662,1716481844294,-286.14940695,0.00024657,9]
[327789678,1716481844447,-1307.82440477,0.00024657,9]
[327789680,1716481844458,-8223.96,0.00024657,10]
[327789682,1716481844468,-4717.55072823,0.00024657,11]
[327789810,1716481846410,-176.2929913,0.00024657,11]
[327789811,1716481846892,-94.0,0.00024657,11]
[327789823,1716482735246,-6900.0,0.000125,2]
[327789824,1716482849195,-34.67191604,0.000125,2]
[327789825,1716482849217,-154.93802479,0.000125,2]
[327789826,1716482849238,-299.60682001,0.000125,2]
[327789827,1716482849260,-3632.73611165,0.000125,2]
[327789828,1716482849283,-832.03043891,0.000189,2]
[327789829,1716482849304,-338.0,0.00020414,2]
[327789830,1716482849491,-167.767291,0.00020414,2]
[327789831,1716482849519,-24900.0,0.00020495,2]
[327789832,1716482849541,-27110.79888968,0.00020913,2]
[327789833,1716482849561,-671.36818854,0.000221,2]
[327789834,1716482849582,-177.80737582,0.000222,2]
[327789835,1716482849601,-755.77262327,0.000223,2]
[327789836,1716482849621,-15769.15539131,0.0002255,2]
[327789837,1716482849641,-177.8073758,0.00022986,2]
[327789838,1716482849661,-671.36818852,0.000235,2]
[327789839,1716482849680,-177.8073758,0.00023771,2]
[327789840,1716482849700,-208.7151748,0.00023836,2]
[327789841,1716482849720,-291.561811,0.00023878,2]
[327789842,1716482849740,-291.561811,0.00023878,2]
[327789843,1716482849761,-832.03043891,0.000239,2]
[327789844,1716482849783,-176.903949,0.00024055,2]
[327789845,1716482849803,-291.561811,0.0002411,2]
[327789846,1716482849824,-291.561811,0.0002411,2]
[327789847,1716482849844,-291.561811,0.0002411,2]
[327789848,1716482849863,-291.561811,0.0002411,2]
[327789849,1716482849883,-291.561811,0.0002411,2]
[327789850,1716482849905,-306.0,0.0002411,2]
[327789851,1716482849926,-291.561811,0.0002411,2]
[327789852,1716482849946,-291.561811,0.0002411,2]
[327789853,1716482849966,-437.3310882,0.0002411,2]
[327789854,1716482849986,-291.561811,0.0002411,2]
[327789855,1716482850006,-291.561811,0.0002411,2]
[327789856,1716482850025,-291.561811,0.0002411,2]
[327789857,1716482850048,-291.561811,0.0002411,2]
[327789858,1716482850069,-582.1304011,0.0002411,2]
[327789859,1716482850090,-291.561811,0.0002411,2]
[327789860,1716482850110,-291.561811,0.0002411,2]
[327789861,1716482850131,-291.561811,0.0002411,2]
[327789862,1716482850153,-291.561811,0.0002411,2]
[327789863,1716482850175,-466.071568,0.00024384,2]
[327789864,1716482850196,-153.0,0.00024384,2]
[327789865,1716482850216,-153.0,0.00024384,2]
[327789866,1716482850236,-196.314567,0.00024384,2]
[327789867,1716482850256,-416.1038471,0.00024384,2]
[327789868,1716482850276,-204.5866529,0.00024384,2]
[327789869,1716482850298,-204.5866529,0.00024384,2]
[327789870,1716482850318,-417.48839794,0.0002444,2]
[327789871,1716482850340,-177.8073758,0.00024557,2]
[327789872,1716482850361,-153.0,0.00024603,2]
[327789873,1716482850381,-4225.76789331,0.00024606,2]
[327789874,1716482850407,-204.5866529,0.0002463,2]
[327789875,1716482850443,-155.02325349,0.00024653,2]
[327789876,1716482850477,-389.24546926,0.00024654,2]
[327789877,1716482850515,-444.22829021,0.00024654,2]
[327789878,1716482850563,-190.38355294,0.00024654,2]
[327789879,1716482850612,-423.12156625,0.00024654,2]
[327789880,1716482850647,-181.3378141,0.00024654,2]
[327789881,1716482850680,-500.0,0.00024654,2]
[327789882,1716482850721,-500.0,0.00024654,2]
[327789883,1716482850758,-500.0,0.00024654,2]
[327789884,1716482850789,-235.0,0.00024654,2]
[327789885,1716482850818,-369.55759549,0.00024654,2]
[327789886,1716482850853,-500.0,0.00024654,2]
[327789887,1716482850880,-500.0,0.00024654,2]
[327789888,1716482850920,-500.0,0.00024654,2]
[327789889,1716482850954,-1898.21836185,0.00024655,2]
[327789890,1716482850983,-158.56849578,0.00024655,2]
[327789891,1716482851013,-6703.49926839,0.00024655,2]
[327789942,1716483033058,-160.80712366,0.000125,2]
[327789944,1716483033067,-3340.79287634,0.00023258,2]
[327789970,1716483038282,-7941.6828304,0.00023258,2]
[327789971,1716483038335,-11772.0810045,0.00023258,2]
[327789987,1716483041448,-610.4842,0.00023258,2]
[327789988,1716483041465,-1234.95908876,0.00023258,2]
[327789989,1716483041474,-399.50537739,0.00024187,2]
[327789990,1716483041484,-4192.88303834,0.00024248,2]
[327789991,1716483041494,-442.767989,0.00024384,2]
[327789992,1716483041505,-399.50537739,0.00024556,2]
[327789993,1716483041733,-3614.85581764,0.00024557,3]
[327790003,1716483043543,-1018.75534384,0.00024557,3]
[327790004,1716483043663,-1614.24210194,0.00024557,3]
[327790005,1716483043673,-2386.81940878,0.00024612,2]
[327790006,1716483043688,-1806.06362956,0.00024612,2]
[327790007,1716483043699,-2858.78020906,0.00024655,2]
[327790008,1716483043710,-189.96457126,0.00024655,2]
[327790009,1716483043720,-155.01395126,0.00024655,2]
[327790010,1716483043731,-2679.56412785,0.00024655,2]
[327790011,1716483043740,-690.41096895,0.00024655,2]
[327790013,1716483043750,-4127.6448993,0.00024655,2]
[327790014,1716483043760,-1350.88655983,0.00024655,2]
[327790015,1716483043770,-455.56419663,0.00024655,2]
[327790016,1716483043780,-155.01395126,0.00024655,4]
[327790017,1716483043790,-410.5949292,0.00024655,2]
[327790019,1716483043799,-155.01395126,0.00024655,2]
[327790021,1716483043808,-2635.15875922,0.00024655,2]
[327790023,1716483043818,-684.8282798,0.00024655,2]
[327790024,1716483043827,-528.62113532,0.00024655,2]
[327790026,1716483043836,-155.11527925,0.00024655,2]
[327790027,1716483043846,-155.17325337,0.00024655,2]
[327790028,1716483043856,-295.11381232,0.00024655,2]
[327790061,1716483046291,-1422.51003382,0.00024655,2]
[327790063,1716483046301,-702.80759732,0.00024655,2]
[327790064,1716483046311,-9401.55826787,0.00024655,2]
[327790066,1716483046320,-7782.07594965,0.00024655,2]
[327790074,1716483046923,-18433.56192228,0.00024655,2]
[327790075,1716483046934,-3980.09499401,0.00024655,2]
[327790076,1716483046956,-3632.73611165,0.00024655,2]
[327790077,1716483046969,-299.60682001,0.00024655,2]
[327790078,1716483046980,-447.77509246,0.00024655,2]
[327790079,1716483046991,-500.0,0.00024655,2]
[327790080,1716483047002,-200.0,0.00024655,2]
[327790081,1716483047013,-11447.29986602,0.00024656,2]
[327790082,1716483047023,-3570.0780993,0.00024657,11]
[327790083,1716483047034,-2344.70135679,0.00024657,11]
[327790084,1716483047044,-896.68,0.00024657,2]
[327790085,1716483047055,-500.0,0.00024657,2]
[327790086,1716483047065,-337.86567568,0.00024657,2]
[327790087,1716483047076,-500.0,0.00024657,2]
[327790088,1716483047086,-656.02,0.00024657,2]
[327790089,1716483047096,-500.0,0.00024657,2]
[327790090,1716483047106,-500.0,0.00024657,2]
[327790091,1716483047116,-718.75,0.00024657,2]
[327790092,1716483047126,-500.0,0.00024657,2]
[327790093,1716483047136,-500.0,0.00024657,2]
[327790094,1716483047146,-500.0,0.00024657,2]
[327790095,1716483047155,-500.0,0.00024657,2]
[327790096,1716483047164,-500.0,0.00024657,2]
[327790097,1716483047175,-523.42659326,0.00024657,2]
[327790098,1716483047188,-500.0,0.00024657,2]
[327790099,1716483047198,-751.3,0.00024657,2]
[327790100,1716483047208,-500.0,0.00024657,2]
[327790101,1716483047219,-660.86,0.00024657,2]
[327790102,1716483047229,-500.0,0.00024657,2]
[327790103,1716483047240,-500.0,0.00024657,2]
[327790104,1716483047250,-500.0,0.00024657,2]
[327790105,1716483047260,-689.33,0.00024657,2]
[327790106,1716483047270,-500.0,0.00024657,2]
[327790107,1716483047280,-500.0,0.00024657,2]
[327790108,1716483047290,-500.0,0.00024657,2]
[327790109,1716483047300,-611.73,0.00024657,2]
[327790110,1716483047311,-500.0,0.00024657,2]
[327790111,1716483047320,-500.0,0.00024657,2]
[327790112,1716483047330,-281.64477977,0.00024657,2]
[327790113,1716483170906,513.12,0.00028,120]
[327790114,1716483197754,513.11,0.00028,120]
[327790117,1716483237345,-1740.60759611,0.00034046,120]
[327790118,1716483237369,-507.46022935,0.00034046,30]
[327790119,1716483237392,-1321.85846534,0.00034046,30]
[327790120,1716483237416,-2501.36380227,0.00034046,120]
[327790121,1716483237439,-1164.76869053,0.00034046,30]
[327790122,1716483237464,-1173.92479707,0.00034046,30]
[327790123,1716483237486,-415.25883245,0.00034046,30]
[327790124,1716483237508,-228.48889349,0.00034046,30]
[327790125,1716483237535,-2000.0,0.00034046,120]
[327790126,1716483237556,-1014.5944266,0.00034046,120]
[327790127,1716483237580,-1694.58350472,0.00034046,30]
[327790128,1716483237602,-3412.3461414,0.00034046,30]
[327790129,1716483237628,-974.5,0.00034046,30]
[327790130,1716483237651,-566193.54517865,0.00034046,120]
[327790131,1716483237676,-2105.56609776,0.00034046,120]
[327790132,1716483237698,-9999.0,0.00034046,30]
[327790133,1716483237722,-6795.95916362,0.00034046,120]
[327790134,1716483237745,-10000.0,0.00034046,30]
[327790135,1716483237767,-647.0,0.00034046,30]
[327790136,1716483237789,-647.0,0.00034046,30]
[327790137,1716483237812,-647.0,0.00034046,30]
[327790138,1716483237836,-647.0,0.00034046,30]
[327790139,1716483237860,-647.0,0.00034046,30]
[327790140,1716483237882,-647.0,0.00034046,30]
[327790141,1716483237904,-647.0,0.00034046,30]
[327790142,1716483237927,-647.0,0.00034046,30]
[327790143,1716483237950,-647.0,0.00034046,30]
[327790144,1716483237971,-647.0,0.00034046,30]
[327790145,1716483237994,-647.0,0.00034046,30]
[327790146,1716483238016,-647.0,0.00034046,30]
[327790147,1716483238039,-647.0,0.00034046,30]
[327790148,1716483238062,-647.0,0.00034046,30]
[327790149,1716483238087,-647.0,0.00034046,30]
[327790150,1716483238109,-647.0,0.00034046,30]
[327790151,1716483238132,-647.0,0.00034046,30]
[327790152,1716483238157,-647.0,0.00034046,30]
[327790153,1716483238180,-647.0,0.00034046,30]
[327790154,1716483238203,-647.0,0.00034046,30]
[327790155,1716483238226,-647.0,0.00034046,30]
[327790156,1716483238249,-647.0,0.00034046,30]
[327790157,1716483238271,-647.0,0.00034046,30]
[327790158,1716483238295,-647.0,0.00034046,30]
[327790159,1716483238318,-647.0,0.00034046,30]
[327790160,1716483238344,-647.0,0.00034046,30]
[327790161,1716483238367,-557.61810442,0.00034046,30]
[327790162,1716483238390,-647.0,0.00034046,30]
[327790163,1716483238414,-4077.33369082,0.00034046,120]
[327790164,1716483238438,-2724.0,0.00034046,60]
[327790165,1716483238461,-4057.57632041,0.00034046,120]
[327790166,1716483238484,-306.0,0.00034046,30]
[327790167,1716483238507,-346.6,0.00034046,120]
[327790168,1716483238530,-954.77422849,0.00034046,30]
[327790174,1716484002897,-9102.84450145,0.00023257,2]
[327790175,1716484047111,-15797.15549855,0.00023257,2]
[327790176,1716484047133,-167.767292,0.0002334,2]
[327790177,1716484047154,-164.28156595,0.00023488,2]
[327790178,1716484047174,-322.5083448,0.00023836,2]
[327790179,1716484047197,-204.5866529,0.00023836,2]
[327790180,1716484047218,-204.5866529,0.00023836,2]
[327790181,1716484047239,-153.0,0.00023878,2]
[327790182,1716484047259,-152.0,0.00024086,2]
[327790183,1716484047281,-150.0,0.0002417,2]
[327790184,1716484047301,-1526.6297299,0.00024274,2]
[327790185,1716484047323,-153.0,0.00024274,2]
[327790186,1716484047344,-153.0,0.00024274,2]
[327790187,1716484047366,-153.0,0.00024274,2]
[327790188,1716484047387,-153.0,0.00024274,2]
[327790189,1716484047406,-153.0,0.00024274,2]
[327790190,1716484047426,-153.0,0.00024274,2]
[327790191,1716484047445,-153.0,0.00024274,2]
[327790192,1716484047466,-153.0,0.00024274,2]
[327790193,1716484047486,-153.0,0.00024274,2]
[327790194,1716484047506,-153.0,0.00024274,2]
[327790195,1716484047527,-153.0,0.00024274,2]
[327790196,1716484047547,-153.0,0.00024274,2]
[327790197,1716484047568,-420.629589,0.00024384,2]
[327790198,1716484047589,-291.561811,0.00024384,2]
[327790199,1716484047610,-4225.76789331,0.00024419,2]
[327790200,1716484047631,-323.33955406,0.00024555,2]
[327790201,1716484047653,-323.33955402,0.00024556,2]
[327790202,1716484047674,-323.33955402,0.00024556,2]
[327790203,1716484047696,-323.33955402,0.00024557,2]
[327790204,1716484047719,-323.33955402,0.00024557,2]
[327790205,1716484047741,-281.0,0.000246,2]
[327790206,1716484047763,-153.0,0.00024603,2]
[327790207,1716484047786,-153.0,0.00024603,2]
[327790208,1716484047815,-153.0,0.00024603,2]
[327790209,1716484047836,-153.0,0.00024603,2]
[327790210,1716484047857,-153.0,0.00024603,2]
[327790211,1716484047886,-153.0,0.00024603,2]
[327790212,1716484047909,-153.0,0.00024603,2]
[327790213,1716484047933,-153.0,0.00024603,2]
[327790214,1716484047954,-153.0,0.00024603,2]
[327790215,1716484047975,-153.0,0.00024603,2]
[327790216,1716484047998,-153.0,0.00024603,2]
[327790217,1716484048022,-153.0,0.00024603,2]
[327790218,1716484048044,-153.0,0.00024603,2]
[327790219,1716484048064,-153.0,0.00024603,2]
[327790220,1716484048088,-153.0,0.00024603,2]
[327790221,1716484048109,-153.0,0.00024603,2]
[327790222,1716484048130,-399.5053774,0.0002462,2]
[327790223,1716484048153,-280.21188555,0.00024655,2]
[327790224,1716484048176,-1581.42130168,0.00024655,2]
[327790225,1716484048199,-1869.19773284,0.00024655,2]
[327790226,1716484048222,-707.94505713,0.00024655,2]
[327790227,1716484048242,-238.75882037,0.00024655,2]
[327790228,1716484048263,-245.80563984,0.00024655,2]
[327790229,1716484048283,-176.834875,0.00024655,2]
[327790230,1716484048306,-702.80759732,0.00024655,2]
[327790231,1716484048327,-16159.36080594,0.00024655,2]
[327790232,1716484048348,-155.0356582,0.00024655,2]
[327790233,1716484048368,-189.96457126,0.00024655,2]
[327790234,1716484048388,-155.0341075,0.00024655,2]
[327790235,1716484048408,-155.0356582,0.00024655,2]
[327790236,1716484048428,-528.62113532,0.00024655,2]
[327790237,1716484048447,-307.84229627,0.00024656,2]
[327790238,1716484048467,-527.47550772,0.00024656,4]
[327790239,1716484048488,-12739.4971879,0.00024656,2]
[327790240,1716484048508,-500.0,0.00024656,2]
[327790241,1716484048655,-410.0,0.00024656,2]
[327790242,1716484048708,-500.0,0.00024656,2]
[327790243,1716484048730,-500.0,0.00024656,2]
[327790244,1716484048750,-370.02513968,0.00024656,2]
[327790245,1716484048771,-500.0,0.00024656,2]
[327790246,1716484048797,-337.01412326,0.00024656,2]
[327790247,1716484048819,-500.0,0.00024656,2]
[327790248,1716484048842,-371.88192643,0.00024656,2]
[327790249,1716484048863,-500.0,0.00024656,2]
[327790250,1716484048889,-500.0,0.00024656,2]
[327790251,1716484048910,-500.0,0.00024656,2]
[327790252,1716484048931,-500.0,0.00024656,2]
[327790253,1716484048951,-500.0,0.00024656,2]
[327790254,1716484048972,-500.0,0.00024656,2]
[327790255,1716484048995,-500.0,0.00024656,2]
[327790256,1716484049017,-1785.03904965,0.00024657,11]
[327790257,1716484049037,-500.0,0.00024657,2]
[327790258,1716484049057,-500.0,0.00024657,2]
[327790259,1716484049078,-155.45045982,0.00024657,2]
[327790260,1716484049101,-500.0,0.00024657,2]
[327790261,1716484049122,-500.0,0.00024657,2]
[327790262,1716484049142,-660.61,0.00024657,2]
[327790263,1716484049162,-586.24,0.00024657,2]
[327790264,1716484049182,-500.0,0.00024657,2]
[327790265,1716484049203,-500.0,0.00024657,2]
[327790266,1716484049224,-522.72,0.00024657,2]
[327790267,1716484049246,-500.0,0.00024657,2]
[327790268,1716484049267,-500.0,0.00024657,2]
[327790269,1716484049288,-500.0,0.00024657,2]
[327790270,1716484049310,-508.64634203,0.00024657,2]
[327790271,1716484049332,-500.0,0.00024657,2]
[327790272,1716484049355,-563.04,0.00024657,2]
[327790273,1716484049377,-500.0,0.00024657,2]
[327790274,1716484049397,-398.84062833,0.00024657,2]
[327790275,1716484049418,-500.0,0.00024657,2]
[327790276,1716484049438,-500.0,0.00024657,2]
[327790277,1716484049462,-522.14,0.00024657,2]
[327790278,1716484049482,-534.87,0.00024657,2]
[327790279,1716484049502,-500.0,0.00024657,2]
[327790280,1716484049525,-500.0,0.00024657,2]
[327790281,1716484049546,-500.0,0.00024657,2]
[327790282,1716484049566,-514.7984048,0.00024657,2]
[327790283,1716484049587,-500.0,0.00024657,2]
[327790284,1716484049607,-500.0,0.00024657,2]
[327790285,1716484049628,-196.2231819,0.00024657,2]
[327790286,1716484051137,-742.9068181,0.00024657,2]
[327790287,1716484051158,-500.0,0.00024657,2]
[327790288,1716484051179,-500.0,0.00024657,2]
[327790289,1716484051198,-500.0,0.00024657,2]
[327790290,1716484051220,-599.68,0.00024657,2]
[327790291,1716484051250,-500.0,0.00024657,2]
[327790292,1716484051272,-151.273657,0.00024657,2]
[327790293,1716484051292,-500.0,0.00024657,2]
[327790294,1716484051312,-500.0,0.00024657,2]
[327790295,1716484051333,-500.0,0.00024657,2]
[327790296,1716484051353,-500.0,0.00024657,2]
[327790297,1716484051371,-500.0,0.00024657,2]
[327790298,1716484051391,-500.0,0.00024657,2]
[327790299,1716484051409,-500.0,0.00024657,2]
[327790300,1716484051430,-500.0,0.00024657,2]
[327790301,1716484051450,-500.0,0.00024657,2]
[327790302,1716484051469,-151.0,0.00024657,2]
[327790303,1716484051490,-500.0,0.00024657,2]
[327790304,1716484051510,-500.0,0.00024657,2]
[327790305,1716484051531,-500.0,0.00024657,2]
[327790306,1716484051552,-500.0,0.00024657,2]
[327790307,1716484051572,-641.38,0.00024657,2]
[327790308,1716484051592,-514.37762923,0.00024657,2]
[327790309,1716484051613,-658.86,0.00024657,2]
[327790310,1716484051632,-500.0,0.00024657,2]
[327790311,1716484051652,-649.07274611,0.00024657,2]
[327790312,1716484051672,-500.0,0.00024657,2]
[327790313,1716484051691,-2811.26,0.00024657,2]
[327790314,1716484051712,-511.92,0.00024657,2]
[327790315,1716484051731,-303.09487443,0.00024657,2]
[327790316,1716484051751,-500.0,0.00024657,2]
[327790317,1716484051772,-3113.58,0.00024657,2]
[327790318,1716484051796,-500.0,0.00024657,2]
[327790319,1716484051960,-554.37,0.00024657,2]
[327790320,1716484051981,-500.0,0.00024657,2]
[327790321,1716484052003,-500.0,0.00024657,2]
[327790322,1716484052024,-1213.77,0.00024657,2]
[327790323,1716484052044,-552.86084487,0.00024657,2]
[327790324,1716484052065,-500.0,0.00024657,2]
[327790325,1716484052085,-500.0,0.00024657,2]
[327790326,1716484052107,-509.26643852,0.00024657,2]
[327790327,1716484052125,-5988.96,0.00024657,2]
[327790328,1716484052145,-500.0,0.00024657,2]
[327790329,1716484052166,-864.23,0.00024657,2]
[327790330,1716484052186,-500.0,0.00024657,2]
[327790331,1716484052207,-651.94,0.00024657,2]
[327790332,1716484052226,-547.94,0.00024657,2]
[327790333,1716484052247,-557.81,0.00024657,2]
[327790334,1716484052268,-554.60685804,0.00024657,2]
[327790335,1716484052288,-3858.11,0.00024657,2]
[327790336,1716484052308,-500.0,0.00024657,2]
[327790337,1716484052329,-500.0,0.00024657,2]
[327790338,1716484052350,-1274.52,0.00024657,2]
[327790339,1716484052370,-500.0,0.00024657,2]
[327790340,1716484052390,-500.0,0.00024657,2]
[327790341,1716484052410,-947.98,0.00024657,2]
[327790342,1716484052430,-620.01,0.00024657,2]